Body Name,Service Code,Expenditure Category,Payment Date,Transaction Number,Supplier,Net Amount,
Barrow Borough Council,Voids maintenance - HRA,Void repairs,09-Jun-2021,200051604,Hughes Brothers,"3,192.37",
Barrow Borough Council,Barrow park,Grounds maintenance - schedule of works,09-Jun-2021,200051541,Continental Landscapes Ltd,"21,778.70",
Barrow Borough Council,Human Resources,Professional fees,24-Jun-2021,200051806,David Ganz Associates Ltd,"1,500.00",
Barrow Borough Council,Barrow Town Deal,Professional fees,24-Jun-2021,200051814,Hatch Associates Ltd,"37,025.50",
Barrow Borough Council,Cost of collection,Council tax collection,09-Jun-2021,200051614,Liberata Uk Ltd,"9,095.54",
Barrow Borough Council,The markets,Buildings repairs and maintenance,17-Jun-2021,200051717,GEZE UK Ltd,"1,110.77",
Barrow Borough Council,Homelessness,Homeless support funding,24-Jun-2021,200051800,SRM Property Maintenance & Letting,752.08,
Barrow Borough Council,Barrow town hall,Gas,17-Jun-2021,200051751,Corona Energy,"1,544.80",
Barrow Borough Council,HRA share of CDC/NDC,Professional fees,09-Jun-2021,200051585,Brathay Services Ltd,"3,000.00",
Barrow Borough Council,HRA Estates,Grounds maintenance - schedule of works,17-Jun-2021,200051677,Continental Landscapes Ltd,"5,638.33",
Barrow Borough Council,Major works maintenance - HRA,Adaptations,09-Jun-2021,200051565,DLP Services (Northern) Ltd,"4,788.17",
Barrow Borough Council,Capitalised Planned Maintenance,Heating,09-Jun-2021,200051606,Sure Maintenance,"17,945.95",
Barrow Borough Council,Capitalised Planned Maintenance,Rewires,09-Jun-2021,200051647,Keith Wilson Elec Con Ltd,"10,820.16",
Barrow Borough Council,Human Resources,Management training,24-Jun-2021,200051819,SHN Training Services Ltd,"1,600.00",
Barrow Borough Council,Capitalised Planned Maintenance,Rewires,17-Jun-2021,200051688,Keith Wilson Elec Con Ltd,"6,851.10",
Barrow Borough Council,Barrow Town Deal,Professional fees,09-Jun-2021,200051571,32West Ltd,975.00,
Barrow Borough Council,Forum 28,Buildings repairs and maintenance,09-Jun-2021,200051655,FTS Fire & Secuirty Ltd,640.00,
Barrow Borough Council,Housing Benefits Admin,Solicitors fees,09-Jun-2021,200051651,Brown Barron Solicitors,689.75,
Barrow Borough Council,Voids maintenance - HRA,Void repairs,09-Jun-2021,200051604,Hughes Brothers,"3,614.95",
Barrow Borough Council,Playground,Parks & Playgrounds Inspections & maintenance - contract,09-Jun-2021,200051541,Continental Landscapes Ltd,"15,694.42",
Barrow Borough Council,Information technology,Licences,09-Jun-2021,200051623,Vodafone Ltd,"2,780.53",
Barrow Borough Council,Capitalised Planned Maintenance,Doors and windows,09-Jun-2021,200051602,Wrekin Windows,"2,241.39",
Barrow Borough Council,Local Council Tax Reduction Scheme (LCTRS),LCTRS Admin,09-Jun-2021,200051614,Liberata Uk Ltd,"9,095.54",
Barrow Borough Council,Emergency planning,Professional fees,09-Jun-2021,200051563,FGH Security Ltd,"2,503.02",
Barrow Borough Council,Waste collection,Refuse collection - contract,09-Jun-2021,200051618,FCC Enviroment Services (UK) Ltd,"62,568.27",
Barrow Borough Council,Development control,Subscriptions,24-Jun-2021,200051797,Haymarket Media Group,"3,470.00",
Barrow Borough Council,Harding Rise Business Centre,Building cleaning,09-Jun-2021,200051570,Associated Cleaning Contractors,693.33,
Barrow Borough Council,Voids maintenance - HRA,Void repairs,09-Jun-2021,200051604,Hughes Brothers,"33,408.20",
Barrow Borough Council,Dock museum,Professional fees,17-Jun-2021,200051701,Bread and Butter Theatre Co,600.00,
Barrow Borough Council,Estates management,Solicitors fees,09-Jun-2021,200051651,Brown Barron Solicitors,"1,495.75",
Barrow Borough Council,Salthouse Road Depot,Electricity,17-Jun-2021,200051710,NPower,909.81,
Barrow Borough Council,Capitalised Planned Maintenance,Doors and windows,09-Jun-2021,200051602,Wrekin Windows,"7,570.81",
Barrow Borough Council,Craven house,Water,09-Jun-2021,200051635,Water Plus Ltd,"1,639.78",
Barrow Borough Council,HRA Estates,Professional fees,09-Jun-2021,200051534,South Lakeland District Council,"3,266.69",
Barrow Borough Council,Capitalised Planned Maintenance,Doors and windows,24-Jun-2021,200051812,Richmond Joiners & Builders Ltd,"1,715.73",
Barrow Borough Council,Housing repairs control account,Housing repairs invoices,09-Jun-2021,200051640,AK Fencing,"1,530.00",
Barrow Borough Council,Barrow town hall,Building cleaning,17-Jun-2021,200051720,Associated Cleaning Contractors,"4,186.58",
Barrow Borough Council,Tenant demand maintenance - HRA,Consultancy fees,17-Jun-2021,200051722,Procure Plus Ltd,"8,493.86",
Barrow Borough Council,Cemeteries,Grounds maintenance - other works,09-Jun-2021,200051629,Greaves Tree Services Ltd,"7,540.00",
Barrow Borough Council,Food safety,Professional training,09-Jun-2021,200051593,Seafish,"1,200.00",
Barrow Borough Council,Crematorium,Electricity,17-Jun-2021,200051710,NPower,990.47,
Barrow Borough Council,Capitalised Planned Maintenance,Rewires,17-Jun-2021,200051688,Keith Wilson Elec Con Ltd,"2,190.86",
Barrow Borough Council,Disabled Facilities Grant,Grants,09-Jun-2021,200051558,Lee Bowron Glazing Ltd,"3,805.00",
Barrow Borough Council,Dock museum,Gas,17-Jun-2021,200051751,Corona Energy,"2,025.81",
Barrow Borough Council,Regeneration,Solicitors fees,17-Jun-2021,200051729,DWF LLP,"2,446.00",
Barrow Borough Council,Estates management,Buildings repairs and maintenance,09-Jun-2021,200051649,Bill Caulfield Electrical,"1,852.13",
Barrow Borough Council,HRA Estates,Building cleaning,17-Jun-2021,200051720,Associated Cleaning Contractors,733.17,
Barrow Borough Council,HRA Estates,Professional fees,09-Jun-2021,200051534,South Lakeland District Council,"9,420.23",
Barrow Borough Council,The park leisure centre,Professional fees,09-Jun-2021,200051579,The Sport Leisure & Culture Consultancy Ltd,"1,275.00",
Barrow Borough Council,Housing repairs control account,Housing repairs invoices,09-Jun-2021,200051637,UK Environmental & Asbestos Solutions Ltd,925.00,
Barrow Borough Council,Police elections,Postage,17-Jun-2021,200051678,Royal Mail,676.80,
Barrow Borough Council,Major works maintenance - HRA,Adaptations,17-Jun-2021,200051715,DLP Services (Northern) Ltd,"11,523.43",
Barrow Borough Council,Forum 28,Electricity,17-Jun-2021,200051710,NPower,"3,784.85",
Barrow Borough Council,HRA administration,Subscriptions,17-Jun-2021,200051740,David Ganz Associates Ltd,950.00,
Barrow Borough Council,Barrow Town Deal,Professional fees,09-Jun-2021,200051571,32West Ltd,900.00,
Barrow Borough Council,Major works maintenance - HRA,Adaptations,17-Jun-2021,200051715,DLP Services (Northern) Ltd,"4,345.02",
Barrow Borough Council,Forum 28,Gas,17-Jun-2021,200051751,Corona Energy,"2,514.20",
Barrow Borough Council,Barrow park,Gas,09-Jun-2021,200051541,Continental Landscapes Ltd,878.07,
Barrow Borough Council,Crematorium,Maintenance contracts - venue,24-Jun-2021,200051813,JCH Plumbing & Heating Ltd,"1,052.00",
Barrow Borough Council,Waste collection,Refuse collection - other works,09-Jun-2021,200051618,FCC Enviroment Services (UK) Ltd,"1,182.39",
Barrow Borough Council,Housing repairs control account,Housing repairs invoices,24-Jun-2021,200051760,Howdens Joinery Ltd,"1,167.58",
Barrow Borough Council,The park leisure centre,Water,24-Jun-2021,200051807,Water Plus Ltd,848.68,
Barrow Borough Council,Estates management,Buildings repairs and maintenance,09-Jun-2021,200051659,MW Flooring,"3,400.00",
Barrow Borough Council,Estates management,Buildings repairs and maintenance,17-Jun-2021,200051725,Concept Elevators (UK) Ltd,525.00,
Barrow Borough Council,Barrow Town Deal,Professional fees,09-Jun-2021,200051571,32West Ltd,975.00,
Barrow Borough Council,Dock Museum HLF Phase 2,Professional fees,09-Jun-2021,200051665,RG Parkins & Partners Ltd,700.00,
Barrow Borough Council,Coast protection,CAPITA dbs fees,09-Jun-2021,200051611,Capita Property & Infrastructure Ltd,890.00,
Barrow Borough Council,Capitalised Planned Maintenance,Roofs,24-Jun-2021,200051764,Ward Contracting Ltd,"1,478.77",
Barrow Borough Council,Tenant demand maintenance - HRA,Routine Maintenance,09-Jun-2021,200051538,DC Contracting,"1,200.00",
Barrow Borough Council,Major works maintenance - HRA,Adaptations,17-Jun-2021,200051715,DLP Services (Northern) Ltd,"1,293.17",
Barrow Borough Council,Harding Rise Business Centre,Building cleaning,17-Jun-2021,200051720,Associated Cleaning Contractors,693.33,
Barrow Borough Council,Housing repairs control account,Housing repairs invoices,24-Jun-2021,200051760,Howdens Joinery Ltd,"1,342.88",
Barrow Borough Council,Heritage Action Zone,Landscaping,09-Jun-2021,200051589,Xanthe Quayle Landscape Architects Ltd,"8,583.33",
Barrow Borough Council,Public conveniences,Building cleaning,09-Jun-2021,200051660,Growing Concerns,"3,531.17",
Barrow Borough Council,Development control,Subscriptions,24-Jun-2021,200051797,Haymarket Media Group,"1,525.00",
Barrow Borough Council,Craven house,Electricity,17-Jun-2021,200051710,NPower,"7,472.94",
Barrow Borough Council,Housing repairs control account,Housing repairs invoices,24-Jun-2021,200051794,Hughes Brothers,"3,230.25",
Barrow Borough Council,Estates management,Subscriptions,09-Jun-2021,200051666,Carlisle City Council,"6,000.00",
Barrow Borough Council,Office support - admin,Photocopying charges,24-Jun-2021,200051781,Ricoh UK Ltd,585.93,
Barrow Borough Council,Pantomime 2020 - Beauty & The Beast,Advertising,24-Jun-2021,200051821,Barrow Rugby Football Club Ltd,550.00,
Barrow Borough Council,Disabled Facilities Grant,Grants,09-Jun-2021,200051601,Dolphin Stairlifts Cumbria,"3,430.00",
Barrow Borough Council,Voids maintenance - HRA,Void repairs,09-Jun-2021,200051604,Hughes Brothers,"9,576.80",
Barrow Borough Council,Major works maintenance - HRA,Adaptations,17-Jun-2021,200051715,DLP Services (Northern) Ltd,"1,115.45",
Barrow Borough Council,Telephones Holding A/C,Telephone charges paid,17-Jun-2021,200051709,EE Ltd,"1,863.20",
Barrow Borough Council,Information technology,Software maintenance,24-Jun-2021,200051808,Cetus Solutions Ltd,"1,581.60",
Barrow Borough Council,Capitalised Planned Maintenance,Doors and windows,24-Jun-2021,200051789,SBP Ltd - Permadoor,782.18,
Barrow Borough Council,Heritage Action Zone,Landscaping,17-Jun-2021,200051667,Xanthe Quayle Landscape Architects Ltd,"8,583.33",
Barrow Borough Council,Disabled Facilities Grant,Grants,09-Jun-2021,200051644,Ward Contracting Ltd,"5,830.21",
Barrow Borough Council,Barrow Town Deal,Professional fees,09-Jun-2021,200051571,32West Ltd,"1,050.00",
Barrow Borough Council,Technical services,Corporate health and safety resources,09-Jun-2021,200051588,Global Office Supplies,888.60,
Barrow Borough Council,Housing repairs control account,Housing repairs invoices,24-Jun-2021,200051760,Howdens Joinery Ltd,"-1,190.99",
Barrow Borough Council,Emergency planning,Professional fees,09-Jun-2021,200051625,James Andrews Recruitment Solutions,960.00,
Barrow Borough Council,Crematorium,Equipment purchase,17-Jun-2021,200051750,Obitus/Vivedia Ltd,565.00,
Barrow Borough Council,Homelessness,Preventing Homelessness - support victims of domestic abuse,17-Jun-2021,200051731,Womens Community Matters,"4,642.75",
Barrow Borough Council,Information technology,Computer hardware maintenance,24-Jun-2021,200051808,Cetus Solutions Ltd,"1,585.00",
Barrow Borough Council,Marina Village,Professional fees,24-Jun-2021,200051814,Hatch Associates Ltd,"25,000.00",
Barrow Borough Council,Forum 28,Cleaning materials,09-Jun-2021,200051564,Elior UK Ltd,850.95,
Barrow Borough Council,Development control,Agency staff,09-Jun-2021,200051581,G2 Recruitment Solutions,"2,928.25",
Barrow Borough Council,Barrow town hall,Building cleaning,09-Jun-2021,200051570,Associated Cleaning Contractors,551.60,
Barrow Borough Council,Estates management,Solicitors fees,09-Jun-2021,200051651,Brown Barron Solicitors,547.75,
Barrow Borough Council,Off street car parking,Professional fees,17-Jun-2021,200051748,PARK NOW Ltd,522.90,
Barrow Borough Council,Capitalised Planned Maintenance,Heating,09-Jun-2021,200051646,Plumbing Trade Supplies,"14,484.27",
Barrow Borough Council,Capitalised Planned Maintenance,Doors and windows,24-Jun-2021,200051792,Wrekin Windows,"23,476.50",
Barrow Borough Council,Housing repairs control account,Housing repairs invoices,24-Jun-2021,200051760,Howdens Joinery Ltd,669.57,
Barrow Borough Council,Current assets - stocks,Stationery stock,24-Jun-2021,200051793,Pitney Bowes Ltd,-981.66,
Barrow Borough Council,Cemeteries,Grounds maintenance - other works,17-Jun-2021,200051677,Continental Landscapes Ltd,"7,202.77",
Barrow Borough Council,Coast protection,CAPITA dbs fees,24-Jun-2021,200051798,Capita Property & Infrastructure Ltd,"5,052.42",
Barrow Borough Council,Capitalised Planned Maintenance,Rewires,17-Jun-2021,200051727,Rexel UK Ltd,"1,539.98",
Barrow Borough Council,Forum 28,Building cleaning,09-Jun-2021,200051564,Elior UK Ltd,"2,541.16",
Barrow Borough Council,Parks and open spaces,Grounds maintenance - schedule of works,09-Jun-2021,200051541,Continental Landscapes Ltd,"32,126.26",
Barrow Borough Council,Crematorium,Gas,17-Jun-2021,200051751,Corona Energy,"2,465.40",
Barrow Borough Council,Craven house,Building cleaning,17-Jun-2021,200051720,Associated Cleaning Contractors,595.26,
Barrow Borough Council,Human Resources,Management training,09-Jun-2021,200051587,SHN Training Services Ltd,"1,504.00",
Barrow Borough Council,Disabled Facilities Grant,Grants,09-Jun-2021,200051616,Airey Property Developments & Adaptations,"4,160.00",
Barrow Borough Council,Major works maintenance - HRA,Door entry,24-Jun-2021,200051767,Keith Wilson Elec Con Ltd,938.58,
Barrow Borough Council,Accelerated Towns Fund,Purchase of equipment,17-Jun-2021,200051732,Amberol Ltd,"3,973.10",
Barrow Borough Council,Emergency planning,Professional fees,17-Jun-2021,200051713,FGH Security Ltd,"2,083.29",
Barrow Borough Council,Street cleansing,Street cleansing,09-Jun-2021,200051618,FCC Enviroment Services (UK) Ltd,"50,718.08",
Barrow Borough Council,Disabled Facilities Grant,Grants,17-Jun-2021,200051683,Ocean Construction UK Ltd,"3,752.29",
Barrow Borough Council,Voids maintenance - HRA,Void repairs,09-Jun-2021,200051604,Hughes Brothers,"6,158.35",
Barrow Borough Council,Estates management,Buildings repairs and maintenance,17-Jun-2021,200051720,Associated Cleaning Contractors,"3,315.00",
Barrow Borough Council,Office support - admin,Photocopier rental,24-Jun-2021,200051781,Ricoh UK Ltd,941.94,
Barrow Borough Council,Housing repairs control account,Housing repairs invoices,24-Jun-2021,200051794,Hughes Brothers,"8,412.70",
Barrow Borough Council,Major works maintenance - HRA,Adaptations,09-Jun-2021,200051664,Chris Bugler,600.00,
Barrow Borough Council,Estates management,Use of public transport,24-Jun-2021,200051823,Piel Ferries,700.00,
Barrow Borough Council,Finance Department,Professional fees,24-Jun-2021,200051816,Bonhams,"6,000.00",
Barrow Borough Council,Barrow town hall,Building cleaning,09-Jun-2021,200051570,Associated Cleaning Contractors,"4,186.58",
Barrow Borough Council,Accelerated Towns Fund,Purchase of equipment,09-Jun-2021,200051661,Guy Perry,940.00,
Barrow Borough Council,Playground,Parks & Playgrounds Repairs & Maintenance,09-Jun-2021,200051541,Continental Landscapes Ltd,685.50,
Barrow Borough Council,Craven house,Building cleaning,09-Jun-2021,200051570,Associated Cleaning Contractors,595.26,
Barrow Borough Council,Democratic representation and management,Consultants' fees,09-Jun-2021,200051559,Lancaster City Council,"68,333.33",
Barrow Borough Council,Tenant demand maintenance - HRA,Routine Maintenance,24-Jun-2021,200051775,Chris Bugler,"1,554.32",
Barrow Borough Council,General grants,Other grants,09-Jun-2021,200051636,Cumbria CVS,"16,000.00",
Barrow Borough Council,Food safety,Professional fees,17-Jun-2021,200051736,James Andrews Recruitment Solutions,520.00,
Barrow Borough Council,Homelessness,Preventing Homelessness - support victims of domestic abuse,17-Jun-2021,200051731,Womens Community Matters,"8,125.00",
Barrow Borough Council,Human Resources,Management training,24-Jun-2021,200051819,SHN Training Services Ltd,"1,920.00",
Barrow Borough Council,Capitalised Planned Maintenance,Rewires,09-Jun-2021,200051608,Rexel UK Ltd,"1,694.73",
Barrow Borough Council,Streetcare Team,Consultants' fees,17-Jun-2021,200051739,APSE,"6,125.00",
Barrow Borough Council,Corporate management,Professional fees,09-Jun-2021,200051571,32West Ltd,"2,625.00",
Barrow Borough Council,HRA Estates,Cleaning - other,09-Jun-2021,200051570,Associated Cleaning Contractors,"3,968.65",
Barrow Borough Council,Housing Benefits Admin,Benefits council tenants,09-Jun-2021,200051614,Liberata Uk Ltd,"2,660.94",
Barrow Borough Council,Cemeteries,Grounds maintenance - schedule of works,17-Jun-2021,200051677,Continental Landscapes Ltd,"12,452.60",
Barrow Borough Council,Voids maintenance - HRA,Void repairs,09-Jun-2021,200051540,Howdens Joinery Ltd,618.41,
Barrow Borough Council,Major works maintenance - HRA,Adaptations,09-Jun-2021,200051582,Progression Solicitors,"2,130.00",
Barrow Borough Council,Recycling,Recycling collection and processing,09-Jun-2021,200051618,FCC Enviroment Services (UK) Ltd,"40,576.53",
Barrow Borough Council,Capitalised Planned Maintenance,Doors and windows,24-Jun-2021,200051812,Richmond Joiners & Builders Ltd,"5,981.02",
Barrow Borough Council,Barrow Town Deal,Professional fees,09-Jun-2021,200051571,32West Ltd,975.00,
Barrow Borough Council,Emergency planning,Professional fees,09-Jun-2021,200051563,FGH Security Ltd,"2,324.73",
Barrow Borough Council,Dock museum,Equipment purchase,09-Jun-2021,200051663,Graphixsigns Ltd,681.00,
Barrow Borough Council,The park leisure centre,Water,24-Jun-2021,200051807,Water Plus Ltd,-949.30,
Barrow Borough Council,Capitalised Planned Maintenance,Doors and windows,09-Jun-2021,200051598,SBP Ltd - Permadoor,"1,198.77",
Barrow Borough Council,Disabled Facilities Grant,Grants,17-Jun-2021,200051683,Ocean Construction UK Ltd,"4,500.00",
Barrow Borough Council,Cyclical maintenance - HRA,Painting,09-Jun-2021,200051648,George Jones & Son (Contractors) Ltd,"12,729.87",
Barrow Borough Council,Major works maintenance - HRA,Adaptations,24-Jun-2021,200051803,Allison Construction,"8,552.00",
Barrow Borough Council,The markets,Gas,17-Jun-2021,200051751,Corona Energy,"1,033.45",
Barrow Borough Council,Information technology,Licences,24-Jun-2021,200051822,Vodafone Ltd,"7,855.44",
Barrow Borough Council,Cemeteries,Buildings repairs and maintenance,09-Jun-2021,200051604,Hughes Brothers,"1,876.80",
Barrow Borough Council,Work in default,WID works,17-Jun-2021,200051700,Pickerings Scaffolding Ltd,"1,900.00",
Barrow Borough Council,Voids maintenance - HRA,Void repairs,09-Jun-2021,200051604,Hughes Brothers,"13,611.13",
Barrow Borough Council,Tenant demand maintenance - HRA,Gas works,24-Jun-2021,200051795,Sure Maintenance,"3,955.35",
Barrow Borough Council,Emergency planning,Professional fees,09-Jun-2021,200051571,32West Ltd,"5,548.50",
Barrow Borough Council,Parks and open spaces,Grounds maintenance - other works,17-Jun-2021,200051738,Greaves Tree Services Ltd,900.00,
Barrow Borough Council,Disabled Facilities Grant,Grants,09-Jun-2021,200051621,Diseno Associates Ltd,"2,994.76",
Barrow Borough Council,Housing repairs control account,Housing repairs invoices,09-Jun-2021,200051600,PJ Smith (Garafix) Ltd,740.00,
Barrow Borough Council,Corporate management,Professional fees,09-Jun-2021,200051585,Brathay Services Ltd,"39,500.00",
Barrow Borough Council,Tenant demand maintenance - HRA,Central overheads,09-Jun-2021,200051604,Hughes Brothers,"28,550.68",
Barrow Borough Council,Capitalised Planned Maintenance,Doors and windows,09-Jun-2021,200051602,Wrekin Windows,"3,067.24",
Barrow Borough Council,Disabled Facilities Grant,Grants,24-Jun-2021,200051779,Lee Bowron Glazing Ltd,"4,565.00",
Barrow Borough Council,Housing repairs control account,Housing repairs invoices,24-Jun-2021,200051769,Wilko Retail Ltd,720.00,
Barrow Borough Council,Tenant demand maintenance - HRA,Routine Maintenance,09-Jun-2021,200051540,Howdens Joinery Ltd,989.06,
Barrow Borough Council,Human Resources,Management training,24-Jun-2021,200051819,SHN Training Services Ltd,"1,632.00",
Barrow Borough Council,Barrow town hall,Buildings repairs and maintenance,17-Jun-2021,200051698,FTS Fire & Secuirty Ltd,519.10,
Barrow Borough Council,HRA Estates,Building cleaning,09-Jun-2021,200051570,Associated Cleaning Contractors,733.17,
Barrow Borough Council,Housing repairs control account,Housing repairs invoices,09-Jun-2021,200051604,Hughes Brothers,"3,546.08",
Barrow Borough Council,Barrow Town Deal,Professional fees,09-Jun-2021,200051571,32West Ltd,975.00,
Barrow Borough Council,Crematorium,Grounds maintenance - other works,17-Jun-2021,200051677,Continental Landscapes Ltd,"1,293.17",
Barrow Borough Council,Housing Benefits Admin,Benefits private tenants,09-Jun-2021,200051614,Liberata Uk Ltd,"7,522.64",
Barrow Borough Council,Barrow town hall,Building cleaning,17-Jun-2021,200051720,Associated Cleaning Contractors,662.50,
Barrow Borough Council,Barrow Town Deal,Professional fees,09-Jun-2021,200051571,32West Ltd,975.00,
Barrow Borough Council,Cyclical maintenance - HRA,Painting,09-Jun-2021,200051648,George Jones & Son (Contractors) Ltd,"5,096.27",
Barrow Borough Council,Marina Village,Professional fees,24-Jun-2021,200051814,Hatch Associates Ltd,"1,853.00",
Barrow Borough Council,Housing repairs control account,Housing repairs invoices,24-Jun-2021,200051794,Hughes Brothers,"4,888.79",
Barrow Borough Council,Emergency planning,Professional fees,09-Jun-2021,200051563,FGH Security Ltd,"1,390.40",
Barrow Borough Council,Emergency planning,Professional fees,09-Jun-2021,200051625,James Andrews Recruitment Solutions,900.00,
Barrow Borough Council,HRA share of CDC/NDC,External Audit fees,24-Jun-2021,200051804,Grant Thornton UK LLP,"1,968.10",
Barrow Borough Council,Capitalised Planned Maintenance,Rewires,09-Jun-2021,200051608,Rexel UK Ltd,512.66,
Barrow Borough Council,Cyclical maintenance - HRA,Electrical testing,09-Jun-2021,200051647,Keith Wilson Elec Con Ltd,"4,403.86",
Barrow Borough Council,Cyclical maintenance - HRA,Electrical testing,17-Jun-2021,200051688,Keith Wilson Elec Con Ltd,"1,121.05",
Barrow Borough Council,Homelessness,Homeless support funding,09-Jun-2021,200051613,Redacted Information,"3,150.00",
Barrow Borough Council,Corporate management,External Audit fees,24-Jun-2021,200051804,Grant Thornton UK LLP,"7,872.40",
Barrow Borough Council,RTB administration - HRA,Professional fees,09-Jun-2021,200051620,Lambert Smith Hampton,800.00,
Barrow Borough Council,Crematorium,Electricity,17-Jun-2021,200051710,NPower,"1,048.40",
Barrow Borough Council,Work in default,WID works,17-Jun-2021,200051690,Sinkfall Recycling,880.83,
Barrow Borough Council,Community development,Professional fees,24-Jun-2021,200051814,Hatch Associates Ltd,"8,400.00",
Barrow Borough Council,HRA administration,Professional fees,09-Jun-2021,200051619,The Housing Ombudsman,"5,996.16",
Barrow Borough Council,Homeless families and dispersed accommodation - HRA,Gas,09-Jun-2021,200051652,British Gas Trading Ltd,828.98,
Barrow Borough Council,Current assets - stocks,Postage stock,24-Jun-2021,200051793,Pitney Bowes Ltd,"2,021.58",
Barrow Borough Council,Major works maintenance - HRA,Shop repairs,09-Jun-2021,200051654,Richard Coates Quantity Surveyor,"1,505.00",
Barrow Borough Council,Capitalised Planned Maintenance,Doors and windows,09-Jun-2021,200051575,Richmond Joiners & Builders Ltd,"1,497.60",
Barrow Borough Council,Current assets - stocks,Museum stock,24-Jun-2021,200051820,Nature Planet Aps,559.00,
Barrow Borough Council,Cost of collection,Business rates collection,09-Jun-2021,200051614,Liberata Uk Ltd,"2,728.66",
Barrow Borough Council,Cost of collection,Court fees,17-Jun-2021,200051734,HMCTS,576.50,
Barrow Borough Council,Emergency planning,Professional fees,24-Jun-2021,200051784,FGH Security Ltd,"1,773.65",
Barrow Borough Council,Dock museum,Building cleaning,17-Jun-2021,200051714,Elior UK Ltd,"1,551.43",
Barrow Borough Council,Estates management,Buildings repairs and maintenance,17-Jun-2021,200051689,Bill Caulfield Electrical,"2,322.47",
Barrow Borough Council,Craven house,Electricity,17-Jun-2021,200051710,NPower,"7,658.81",
Barrow Borough Council,Capitalised Planned Maintenance,Doors and windows,24-Jun-2021,200051789,SBP Ltd - Permadoor,"1,336.39",
Barrow Borough Council,Forum 28,Electricity,17-Jun-2021,200051710,NPower,"3,130.48",
Barrow Borough Council,The park leisure centre,Water,24-Jun-2021,200051807,Water Plus Ltd,898.01,
Barrow Borough Council,Disabled Facilities Grant,Grants,24-Jun-2021,200051778,Benchmark Building Serv UK Ltd,"5,490.00",
Barrow Borough Council,Housing repairs control account,Housing repairs invoices,24-Jun-2021,200051810,UK Environmental & Asbestos Solutions Ltd,"1,350.00",
Barrow Borough Council,Revenue & Benefits,Postage,02-Jun-2021,DD020621,Royal Mail,"1,268.78",
Barrow Borough Council,Information technology,Licences,04-Jun-2021,DD040621,Zendesk,"2,157.04",
Barrow Borough Council,The Music of Prince,Professional Fees,04-Jun-2021,DD040621,Lisa Hart,650.00,
Barrow Borough Council,Corporate Costs,Childcare Vouchers,07-Jun-2021,DD070621,Sodexo,540.22,
Barrow Borough Council,Corporate Costs,Bank Charges,10-Jun-2021,DD100621,HSBC,"1,006.61",
Barrow Borough Council,CIS - Inland Revenue Account,CIS Tax,14-Jun-2021,DD140621,HMRC,"4,270.35",
Barrow Borough Council,Homelessness,Homeless support funding,14-Jun-2021,DD140621,SRM Lettings,752.08,
Barrow Borough Council,Corporate Costs,Professional fees,24-Jun-2021,DD240621,Capita Business Services Ltd,"4,151.00", 
Barrow Borough Council,Low Carbon Barrow,Professional Fees,24-Jun-2021,DD240621,Charge My Street,"6,300.00",
Barrow Borough Council,Corporate Costs,Professional Fees,28-Jun-2021,DD280621,Allpay,"2,899.42",
Barrow Borough Council,Homelessness,Homeless support funding,30-Jun-2021,DD300621,M&D Wilson Properties,500.00,
Barrow Borough Council,Homelessness,Homeless support funding,30-Jun-2021,DD300621,SRM Lettings,752.08,
